Cogmind - Beta 12 @@@ ROGUE MODE // 2023.03.17 @ 04:08:14 Player: ArabianSandBoa Result: Self-destructed Performance ------------- Evolutions (5) 2500 Regions Visited (18) 3600 Robots Destroyed (261) 1305 Value Destroyed (8885) 8885 Prototype IDs (56) 1120 Alien Tech Used (0) 0 Bonus (1744) 1744 TOTAL SCORE: 19154 Bonus ------- High Alert Combat Kills 230 Follower Combat Kills 677 Aligned with FarCom 300 Met Imprinter 300 Was Imprinted 300 Friendly Fire -63 Cogmind --------- Core Integrity 891/1000 Matter 226/300 Energy 100/100 System Corruption 3% Temperature Cool (0) Movement Core (200) Ox3 Location -5/Factory Parts ------- > --- POWER (1) -------- (None) > --- PROPULSION (4) --- Nuclear Pulse Array Nuclear Pulse Array > --- UTILITY (10) ----- Power Amplifier Advanced Heat Sink Enhanced Optical Array Enhanced Optical Array Core Analyzer EX Chip 1 > --- WEAPON (2) ------- Proton Cannon > --- INVENTORY (5) ---- Nuclear Pulse Array AWS/Autocannon Peak State ------------ > --- POWER ------------ Light Neutrino Core > --- PROPULSION ------- Centrium Heavy Treads > --- UTILITY ---------- Improved Cooling System Humpback Enhanced Optical Array Improved Armor Integrity Analyzer Advanced Transmission Jammer Improved Light Armor Plating Centrium Medium Armor Plating Centrium Medium Armor Plating Medium Reflective Plating > --- WEAPON ----------- Advanced Variable Charge Gun Advanced Variable Charge Gun > --- INVENTORY -------- Heavy Deuterium Engine Cold Fusion Reactor Centrium Heavy Treads Humpback Advanced Energy Well Matter Compressor Advanced Gravity Neutralizer Hardened Light Armor Plating Hardened Light Armor Plating EX Chip 1 EX Chip 1 EX Chip 1 Hacking Suite Hacking Suite Makeshift Hacking Suite EX Chip 2 System Shield Makeshift System Shield Makeshift System Shield System Purifier Long-range Tractor Beam Advanced Recalibrator Hacking Drone Bay Beamcaster Heavy Plasma Cannon Flak Gun AWS/Autocannon Improved Grenade Launcher Phasing Sabre Phasing Sabre GAL Module [Rating: 109] Favorites ----------- Power Cold Fusion Reactor Engine Heavy Deuterium Engine Power Core Light Nuclear Core Reactor Cold Fusion Reactor Propulsion Improved Treads Treads Improved Treads Leg Aluminum Leg Wheel Armored Huge Wheel Flight Unit Nuclear Pulse Array Utility Humpback Device Improved Cooling System Storage Humpback Processor Improved Armor Integrity Analyzer Hackware Hacking Suite Protection Improved Light Armor Plating Weapon Heavy Assault Cannon Energy Gun AWS/EX-DEC Energy Cannon Heavy Plasma Cannon Ballistic Gun Improved Assault Rifle Ballistic Cannon Heavy Assault Cannon Launcher Grenade Launcher Special Weapon Plasma Cutter Slashing Weapon Phasing Sabre Special Melee Weapon Datajack Build | -11 -10 -10 -9 -9 -9 -8 -8 -7 -7 -7 -7 -6 -6 -6 -6 -6 -6 -5 ------- Run | Jun Mat Min Mat Min Exi Min Mat Fac Low Low Zio Pro Fac Ext Cet Arc Hub Fac Slots Evolved 10 | . . . 2 . . . 2 2 . . . . 2 . . . . 2 Power . | . . . . . . . . . . . . . . . . . . . Propulsion 2 | . . . . . . . . . . . . . . . . . . 2 Utility 8 | . . . 2 . . . 2 2 . . . . 2 . . . . . Weapon . | . . . . . . . . . . . . . . . . . . . Parts Attached 250 | . 7 5 30 2 32 5 28 6 18 3 16 5 5 38 20 6 15 9 Power 16 | . . 2 3 . 1 . 3 . 1 . 1 . . 1 1 1 . 2 Engine 6 | . . . 1 . 1 . 1 . 1 . . . . . . 1 . 1 Core 7 | . . 2 2 . . . 1 . . . . . . 1 . . . 1 Reactor 3 | . . . . . . . 1 . . . 1 . . . 1 . . . Propulsion 34 | . 4 2 7 . 2 4 5 1 . . . . . 5 1 . 1 2 Treads 16 | . 2 2 6 . 2 1 1 . . . . . . . 1 . 1 . Leg . | . . . . . . . . . . . . . . . . . . . Wheel 15 | . 2 . . . . 3 4 1 . . . . . 5 . . . . Hover . | . . . . . . . . . . . . . . . . . . . Flight 3 | . . . 1 . . . . . . . . . . . . . . 2 Utility 121 | . 2 . 10 . 11 . 16 3 12 3 11 5 5 20 10 2 7 4 Device 30 | . . . . . 2 . 3 1 3 1 2 2 2 4 3 2 4 1 Storage 14 | . 1 . 3 . 3 . 1 . 1 . . . . 1 2 . 2 . Processor 15 | . 1 . 2 . 2 . 2 . 1 . 3 1 . 1 . . . 2 Hackware 7 | . . . 2 . . . 3 1 . . . . . . . . . 1 Protection 55 | . . . 3 . 4 . 7 1 7 2 6 2 3 14 5 . 1 . Artifact . | . . . . . . . . . . . . . . . . . . . Weapon 79 | . 1 1 10 2 18 1 4 2 5 . 4 . . 12 8 3 7 1 Energy Gun 16 | . . . 1 . 2 1 2 . . . 1 . . . 2 2 5 . Energy Cannon 12 | . . . 1 . 1 . . . . . . . . 4 2 1 2 1 Ballistic Gun 23 | . 1 1 5 2 8 . . . . . 1 . . 4 1 . . . Ballistic Cannon 13 | . . . 2 . . . 2 2 3 . 2 . . 2 . . . . Launcher 6 | . . . 1 . 2 . . . 2 . . . . . 1 . . . Special Weapon 3 | . . . . . 3 . . . . . . . . . . . . . Impact Weapon . | . . . . . . . . . . . . . . . . . . . Slashing Weapon 4 | . . . . . . . . . . . . . . 2 2 . . . Piercing Weapon . | . . . . . . . . . . . . . . . . . . . Special Melee Weapon 2 | . . . . . 2 . . . . . . . . . . . . . Unidentified Prototypes 12 | . . . 3 . 2 . 1 . . . 1 . . 2 3 . . . Parts Lost 54 | . 1 . 3 . 1 . 2 . 2 1 . . 1 11 4 3 22 3 Power 5 | . . . 1 . . . 1 . . . . . . . . 1 1 1 Propulsion 4 | . . . 1 . . . . . . . . . . 2 . . 1 . Utility 31 | . . . . . . . . . 2 1 . . 1 6 4 2 13 2 Weapon 13 | . 1 . 1 . 1 . 1 . . . . . . 3 . . 6 . Highest Loss Streak 21 | . 1 . 3 . 1 . 1 . 1 1 . . 1 6 2 3 21 2 To Critical Strikes 2 | . . . . . 1 . . . . . . . . . . . 1 . Average Slot Usage (%) 81 | . 94 100 97 88 78 76 70 72 78 76 75 76 78 87 80 84 85 64 Engine 3 | . 14 1 1 . 1 11 1 . . 7 5 . . . . 2 6 4 Core 3 | . . 12 9 11 9 . 1 . . . . . . 1 2 . . . Reactor 2 | . . . . . . . 4 7 6 . 1 7 6 4 2 3 . . Treads 9 | . 17 28 21 22 22 18 . . . . . . . . 5 6 6 4 Wheel 4 | . 3 . . . . 3 16 9 7 7 7 7 6 9 1 . . . Device 7 | . . . . . 1 11 3 6 4 6 7 11 19 17 13 25 31 21 Storage 9 | . 14 14 11 11 10 11 9 7 7 7 7 7 6 6 8 13 13 4 Processor 12 | . 8 14 15 11 11 11 12 10 12 10 12 15 13 13 9 6 6 10 Hackware 1 | . . . 8 . . . 5 4 1 . . . . . . . . 3 Protection 11 | . . . 6 11 4 . 7 14 24 27 24 18 19 21 22 13 6 4 Energy Gun 2 | . 11 . . . 1 10 6 . . . . . . . 4 4 7 . Energy Cannon 1 | . . . . . 1 . . . . . . . . 4 3 4 4 5 Ballistic Gun 5 | . 16 28 20 22 4 . . . . . . . . 2 2 2 . . Ballistic Cannon 3 | . . . 1 . . . 2 9 10 7 6 7 6 3 . . . . Naked Turns . | . . . . . . . . . . . . . . . . . . . Heaviest Build 252 | 14 19 21 66 66 246 223 239 244 246 241 244 240 242 252 250 250 244 36 Greatest Support 80 | 20 46 46 46 46 46 46 20 28 28 28 28 28 28 28 80 80 80 80 Greatest Overweight (x) 23 | . . . 2 1 5 22 23 12 8 8 8 8 8 20 11 3 3 1 Average Overweight (x) 5 | . . . . 1 2 5 12 8 8 8 8 8 8 9 3 2 2 . Largest Inventory Capacity 35 | . 10 10 20 20 35 35 35 35 35 35 35 35 35 35 35 35 35 5 Average Capacity 30 | . 8 10 18 20 30 35 35 35 35 35 35 35 35 35 35 35 34 5 Most Carried 35 | . 8 10 20 20 35 35 35 35 35 35 35 35 35 35 35 33 35 5 Average Carried 28 | . 7 9 17 19 24 34 34 34 34 34 34 34 33 34 33 32 33 4 Final Capacity 35 | 8 10 10 20 20 35 35 35 35 35 35 35 35 35 35 35 35 5 5 Final Carried 35 | 6 8 10 20 20 35 35 35 35 35 35 35 35 34 34 33 33 5 5 Class Distribution -------------------- 62% | Hauler-Mutant 18% | Mutant 13% | Scavenger-Mutant 4% | Hacker-Mutant Dominant Class ---------------- Mutant | -10/Materials Mutant | -10/Mines Mutant | -9/Materials Mutant | -9/Mines Hauler-Mutant | -9/Exiles Hauler-Mutant | -8/Mines Hauler-Mutant | -8/Materials Hauler-Mutant | -7/Factory Hauler-Mutant | -7/Lower Caves Hauler-Mutant | -7/Lower Caves Hauler-Mutant | -7/Zion Hauler-Mutant | -6/Proximity Caves Hauler-Mutant | -6/Factory Hauler-Mutant | -6/Extension Scavenger-Mutant | -6/Cetus Scavenger-Mutant | -6/Archives Scavenger-Mutant | -6/Hub_04(d) Scavenger-Mutant | -5/Factory Resources | -11 -10 -10 -9 -9 -9 -8 -8 -7 -7 -7 -7 -6 -6 -6 -6 -6 -6 -5 ----------- Run | Jun Mat Min Mat Min Exi Min Mat Fac Low Low Zio Pro Fac Ext Cet Arc Hub Fac Matter Collected 7673 | 200 180 174 1323 56 892 239 846 134 674 279 122 506 347 1093 368 105 135 . Remotely . | . . . . . . . . . . . . . . . . . . . Salvage Created 10079 | . 627 202 2066 15 255 346 1973 223 315 384 . 142 436 975 887 314 774 145 Parts 575 | . 47 15 124 . 66 15 106 17 8 19 . 6 11 41 38 12 38 12 Haulers Intercepted 10 | . 2 . 6 . . . 1 . . . . . . . . . 1 . Recyclers Shooed 6 | . . . 1 . . . 3 . . . . . 1 1 . . . . Parts Field Recycled . | . . . . . . . . . . . . . . . . . . . Retrieved Matter . | . . . . . . . . . . . . . . . . . . . Parts Self-Destructed 34 | . . . . . . . . . 3 12 . 19 . . . . . . Prevented 6 | . . . . . . . . . . . . 6 . . . . . . Kills | -11 -10 -10 -9 -9 -9 -8 -8 -7 -7 -7 -7 -6 -6 -6 -6 -6 -6 -5 ------- Run | Jun Mat Min Mat Min Exi Min Mat Fac Low Low Zio Pro Fac Ext Cet Arc Hub Fac Combat Hostiles Destroyed 182 | . 12 4 37 2 5 6 35 5 10 11 . 4 3 12 20 4 9 3 Melee 1 | . . . . . . . . . . . . . . . 1 . . . Guns 75 | . 10 4 25 2 2 3 15 . . . . . . 2 4 3 5 . Cannons 74 | . . . 8 . . . 12 4 9 11 . 4 3 8 8 1 4 2 AOE 16 | . 2 . 4 . 3 . . 1 . . . . . . 5 . . 1 Classes Destroyed 21 | . 6 1 3 1 2 1 2 1 1 1 . 1 . . 1 . . . Worker 14 | . . . 3 . . 2 5 1 . . . . 1 . . . 1 1 Builder 11 | . . . . . . . 4 1 . . . . 1 4 . . . 1 Tunneler 1 | . . 1 . . . . . . . . . . . . . . . . Hauler 10 | . 2 . 6 . . . 1 . . . . . . . . . 1 . Recycler 13 | . 1 . 5 . . . 2 . . . . . 3 2 . . . . Operator 10 | . 2 . 3 . . . 1 . . . . . . 2 . 1 1 . Drone 1 | . . . . . . . . . . . . 1 . . . . . . Turret 1 | . . . . . 1 . . . . . . . . . . . . . Watcher 16 | . 2 . 5 . . . 4 . . . . . . 1 1 . 2 1 Swarmer 30 | . 6 . 8 . . . 4 . . . . 1 1 . 7 . . 3 Grunt 73 | . 6 4 20 . . 4 16 2 2 5 . . . 2 9 . 3 . Brawler 2 | . . . 1 . . . 1 . . . . . . . . . . . Duelist 1 | . . . . . . . . . . . . . . . 1 . . . Sentry 34 | . . . 8 . . . 10 2 1 1 . 1 2 5 . 4 . . Specialist 7 | . . . . . . . 2 . . . . . . . . . 5 . Hunter 11 | . . . . . . 2 2 . 2 1 . . . 4 . . . . Programmer 6 | . . . . . . . . 1 . 3 . . . . 1 . 1 . Behemoth 3 | . . . . . . . . . 1 . . 1 . 1 . . . . Cetus Guard 2 | . . . . . . . . . . . . . . . 2 . . . Zionite 7 | . . . . . 7 . . . . . . . . . . . . . Master Thief 1 | . . . . . . . . . . 1 . . . . . . . . Assembled 6 | . . . . 2 4 . . . . . . . . . . . . . Thug 1 | . . . . . . . . . 1 . . . . . . . . . Savage 3 | . . . . . . . . . 3 . . . . . . . . . Best Kill Streak 6 | . 5 3 6 1 4 2 6 4 4 5 . 1 4 3 6 1 2 5 Combat Bots Only 6 | . 3 2 6 1 2 1 6 3 4 5 . 1 2 2 6 1 2 2 Max Kills in Single Turn 5 | . 2 1 5 1 1 1 2 2 1 2 . 1 1 2 3 1 1 1 Gunslinging . | . . . . . . . . . . . . . . . . . . . Exploded 4 | . 2 . 4 . 1 . . 1 . . . . . . 2 . . 1 Melee 1 | . . . . . . . . . . . . . . . 1 . . . Uniques/NPCs Destroyed 4 | . . . . . 4 . . . . . . . . . . . . . 8R-AWN (-9/Exiles) EX-DEC (-9/Exiles) EX-BIN (-9/Exiles) EX-HEX (-9/Exiles) Combat | -11 -10 -10 -9 -9 -9 -8 -8 -7 -7 -7 -7 -6 -6 -6 -6 -6 -6 -5 -------- Run | Jun Mat Min Mat Min Exi Min Mat Fac Low Low Zio Pro Fac Ext Cet Arc Hub Fac Damage Taken 13892 | . 367 114 1588 47 650 135 1521 230 1006 463 . 879 369 2098 2242 478 1251 454 Core 1366 | . 61 14 142 . 79 . 171 65 78 57 . 143 24 194 108 76 45 109 Absorbed by Shields . | . . . . . . . . . . . . . . . . . . . Reduced by Siege Mode 181 | . . . . . . . . . . . . . . . 130 . 51 . Redirected to Shielding 321 | . . . . . 15 . . 30 34 26 . 77 76 63 . . . . Regen/Repaired (Parts) 1924 | . . . 521 . . . 396 . . . 1007 . . . . . . . Core Remaining (%) 63 | 100 . 70 . . . 44 68 . . . . 51 . . . . 47 . Volleys Fired 740 | . 48 11 137 4 79 . 73 24 34 34 . 22 37 104 34 23 56 20 Largest 2 | . 2 2 2 2 2 . 1 2 2 1 . 1 1 2 2 2 2 1 Hottest 276 | . 60 40 67 46 63 . 60 96 96 60 . 60 60 170 276 165 170 75 Shots Fired 1207 | . 96 22 274 8 103 19 143 26 51 34 . 22 37 161 61 41 89 20 Gun 684 | . 96 22 228 8 53 19 71 . . . . . . 62 33 27 65 . Cannon 483 | . . . 45 . 15 . 72 26 51 34 . 22 37 99 24 14 24 20 Launcher 22 | . . . 1 . 17 . . . . . . . . . 4 . . . Special 18 | . . . . . 18 . . . . . . . . . . . . . Kinetic 808 | . 56 22 273 8 53 . 72 26 51 34 . 22 37 129 13 12 . . Thermal 212 | . . . . . 18 . . . . . . . . 32 44 29 89 . Explosive 22 | . . . 1 . 17 . . . . . . . . . 4 . . . Electromagnetic 165 | . 40 . . . 15 19 71 . . . . . . . . . . 20 Robot Hit Streak 60 | . 9 24 39 2 13 19 60 6 12 8 . 6 9 10 12 12 25 3 Robot Miss Streak 5 | . 3 1 3 2 2 1 5 2 3 2 . 5 4 5 3 3 2 4 Penetration Max 1 | . . . . . . . . . 1 1 . . 1 1 . . . . Secondary Targets 7 | . . 2 2 . 1 . . . . . . . . . 1 . 1 . Max Gunslinging Chain 1 | . . 1 1 . 1 . . . . . . . . . 1 . 1 . Autonomous 90 | . . . . . . 19 71 . . . . . . . . . . . Shots Hit Robots 840 | . 56 20 204 3 70 19 124 8 38 20 . 13 20 97 51 35 54 8 Core Hits 434 | . 28 11 80 2 33 11 78 6 12 11 . 4 9 39 45 27 23 15 Critical Kills 5 | . . . . . . . . . . . . . . 2 2 1 . . Critical Parts Destroyed 3 | . . . 2 . . . . . . . . . . 1 . . . . Critical Strikes 43 | . . . 5 . . . 11 2 4 3 . 1 4 7 3 3 . . Burn 2 | . . . . . . . . . . . . . . . . 2 . . Meltdown 5 | . . . . . . . . . . . . . . 2 2 1 . . Destroy 3 | . . . 2 . . . . . . . . . . 1 . . . . Blast 30 | . . . 3 . . . 9 2 4 3 . 1 4 4 . . . . Corrupt 2 | . . . . . . . 2 . . . . . . . . . . . Sever 1 | . . . . . . . . . . . . . . . 1 . . . Melee Attacks 13 | . . . . . 5 . . . . . . . . . 8 . . . Impact . | . . . . . . . . . . . . . . . . . . . Slashing 8 | . . . . . . . . . . . . . . . 8 . . . Piercing . | . . . . . . . . . . . . . . . . . . . Sneak Attacks 5 | . . . . . 5 . . . . . . . . . . . . . Combat Hostiles . | . . . . . . . . . . . . . . . . . . . Follow-up Attacks . | . . . . . . . . . . . . . . . . . . . Damage Inflicted 24678 | . 825 248 3564 43 1415 691 4794 701 1521 1356 . 669 1126 2728 1976 934 1600 487 Guns 10103 | . 759 248 2570 43 550 598 2068 . . . . . . 1018 674 552 1023 . Cannons 12188 | . . . 810 . 261 . 2588 444 1521 1356 . 669 1126 1611 663 382 569 188 Explosions 1972 | . 66 . 184 . 435 31 138 257 . . . . . 99 464 . . 298 Melee 175 | . . . . . . . . . . . . . . . 175 . . . Ramming 71 | . . . . . . 62 . . . . . . . . . . 8 1 Kinetic 14876 | . 415 248 3380 43 550 . 2588 444 1521 1356 . 669 1126 2063 200 273 . . Thermal 4847 | . 66 . . . 193 31 138 257 . . . . . 665 1137 661 1592 107 Explosive 1059 | . . . 184 . 411 . . . . . . . . . 464 . . . Electromagnetic 3650 | . 344 . . . 261 598 2068 . . . . . . . . . . 379 Impact . | . . . . . . . . . . . . . . . . . . . Slashing 175 | . . . . . . . . . . . . . . . 175 . . . Piercing . | . . . . . . . . . . . . . . . . . . . Highest Corruption 8 | . . . 8 8 8 8 1 1 1 1 1 . . . . . 2 2 Average Corruption 5 | . . . 6 8 8 8 1 1 1 1 1 . . . . . 1 1 Corruption Purged 2 | . . . . . . . . . 1 . 1 . . . . . . . Corruption Blocked . | . . . . . . . . . . . . . . . . . . . Effects 338 | . . . 74 9 134 75 19 6 11 3 1 . . . . . 6 . Message Errors 81 | . . . 20 1 31 20 5 1 1 1 . . . . . . 1 . Matter Fused 82 | . . . 16 6 30 18 7 1 3 1 . . . . . . . . Heat Flow Errors 44 | . . . 7 . 19 12 1 . 1 . . . . . . . 4 . Energy Discharges 38 | . . . 5 1 20 6 1 2 2 1 . . . . . . . . Parts Rejected 3 | . . . 1 . 1 . 1 . . . . . . . . . . . Parts Fused 1 | . . . . . 1 . . . . . . . . . . . . . Data Loss (minor) 50 | . . . 12 . 21 10 2 1 3 . . . . . . . 1 . Data Loss (major) 17 | . . . 3 1 5 6 1 . 1 . . . . . . . . . Misfires 6 | . . . 4 . 2 . . . . . . . . . . . . . Alerts 9 | . . . 3 . 1 3 . 1 . . 1 . . . . . . . Weapon Failures 7 | . . . 3 . 3 . 1 . . . . . . . . . . . Overload Shots 1 | . . . . . . . . . . . . . . . 1 . . . Overflow Damage 963 | . . . 18 . 30 . 375 111 60 165 . 15 52 99 32 . 3 3 Projectiles 852 | . . . 18 . 28 . 375 9 60 165 . 15 52 99 25 . 3 3 Explosions 104 | . . . . . 2 . . 102 . . . . . . . . . . Melee 7 | . . . . . . . . . . . . . . . 7 . . . Knockbacks 38 | . . . 1 . . . 20 . 4 6 . . 4 3 . . . . Impact . | . . . . . . . . . . . . . . . . . . . Kinetic 37 | . . . 1 . . . 20 . 3 6 . . 4 3 . . . . Secondary 1 | . . . . . . . . . 1 . . . . . . . . . Self-Inflicted Damage 140 | . 21 . . . . . 42 47 . . . . . . . . . 30 Shots 5 | . 1 . . . . . 1 1 . . . . . . . . . 2 Rammed 13 | . . . . . . 11 . . . . . . . . . . 1 1 Targets Rammed 15 | . . . . . . 13 . . . . . . . . . . 1 1 Kicked . | . . . . . . . . . . . . . . . . . . . Crushed 2 | . . . . . . 2 . . . . . . . . . . . . Highest Temperature 531 | . 22 22 204 . 269 245 234 20 195 321 . . . 114 531 . 220 . Average Temperature 67 | . 11 11 39 . 91 84 51 5 61 127 . . . 47 170 . 38 . Received Heat Transfer 3066 | . 159 87 648 . . 72 468 57 147 153 . 87 78 342 474 54 240 . Effects 7 | . . . . . . . . . . 1 . . . . 6 . . . Shutdowns 2 | . . . . . . . . . . 1 . . . . 1 . . . Interference 2 | . . . . . . . . . . . . . . . 2 . . . Matter Decay 1 | . . . . . . . . . . . . . . . 1 . . . Short Circuit 2 | . . . . . . . . . . . . . . . 2 . . . Siege Activations 13 | . . . . . . . . . . . . . . . 3 2 8 . Total Turns 663 | . . . . . . . . . . . . . . . 115 54 494 . Longest Duration 180 | . . . . . . . . . . . . . . . 56 36 180 . Robots Corrupted 11 | . . . . . . 3 8 . . . . . . . . . . . Combat Hostiles 11 | . . . . . . 3 8 . . . . . . . . . . . Parts Fried 26 | . 2 . . . 1 5 15 . . . . . . . . . . 3 Impact Corruptions . | . . . . . . . . . . . . . . . . . . . Robots Melted 5 | . . . . . . . . . . . . . . 2 2 1 . . Combat Hostiles 4 | . . . . . . . . . . . . . . 2 2 . . . Parts Melted 24 | . . . . . 4 . . . . . . 1 . 7 7 4 1 . Heat Transferred 7271 | . 150 . . . 605 50 150 150 . . . . . 1000 1618 1192 2306 50 Parts Sabotaged . | . . . . . . . . . . . . . . . . . . . Parts Stolen 3 | . . . . . . . . . . 3 . . . . . . . . Parts Stripped . | . . . . . . . . . . . . . . . . . . . Power Chain Reactions 6 | . 1 . . . 1 1 2 . . . . . . . . . . 1 Missiles Intercepted . | . . . . . . . . . . . . . . . . . . . Alert | -11 -10 -10 -9 -9 -9 -8 -8 -7 -7 -7 -7 -6 -6 -6 -6 -6 -6 -5 ------- Run | Jun Mat Min Mat Min Exi Min Mat Fac Low Low Zio Pro Fac Ext Cet Arc Hub Fac Peak Influence 650 | . 179 171 650 243 . 212 638 508 . . . . 263 381 298 178 150 284 Initial 289 | . . 66 . 243 . . 1 289 . . . . 9 128 70 87 60 21 Average 184 | . 102 54 347 243 . 27 304 354 . . . . 137 119 114 142 46 45 Maximum Alert Level 2 | . . . 2 1 . 1 2 2 . . . . 1 1 1 . . 1 Low Security (%) 61 | . 100 100 19 . . 99 24 . . . . . 62 87 72 100 100 93 Level 1 24 | . . . 39 100 . . 46 69 . . . . 37 12 27 . . 6 Level 2 14 | . . . 41 . . . 29 30 . . . . . . . . . . Level 3 . | . . . . . . . . . . . . . . . . . . . Level 4 . | . . . . . . . . . . . . . . . . . . . Level 5 . | . . . . . . . . . . . . . . . . . . . High Security . | . . . . . . . . . . . . . . . . . . . Max Security . | . . . . . . . . . . . . . . . . . . . Squads Dispatched 31 | . 3 . 8 . . 1 7 2 . . . . 1 2 . . 5 2 Investigation 10 | . 2 . 5 . . 1 . 1 . . . . . 1 . . . . Extermination 3 | . . . . . . . . 1 . . . . . . . . 1 1 Reinforcement 15 | . 1 . 3 . . . 4 . . . . . 1 1 . . 4 1 Assault . | . . . . . . . . . . . . . . . . . . . Garrison 3 | . . . . . . . 3 . . . . . . . . . . . Intercept . | . . . . . . . . . . . . . . . . . . . Searches Triggered . | . . . . . . . . . . . . . . . . . . . Construction Impeded 2 | . . . . . . . . . . . . . 1 . . . . 1 Haulers Reinforced . | . . . . . . . . . . . . . . . . . . . Active Scanning Responses . | . . . . . . . . . . . . . . . . . . . Cargo Convoy Interrupts . | . . . . . . . . . . . . . . . . . . . Stealth | -11 -10 -10 -9 -9 -9 -8 -8 -7 -7 -7 -7 -6 -6 -6 -6 -6 -6 -5 --------- Run | Jun Mat Min Mat Min Exi Min Mat Fac Low Low Zio Pro Fac Ext Cet Arc Hub Fac Distress Signals 9 | . 1 . 2 . . . 2 . . . . . . 2 1 . 1 . Communications Jammed 71 | . . . . . . . . . . . . . . 52 15 . 4 . Distress Signals 71 | . . . . . . . . . . . . . . 52 15 . 4 . Times Spotted 302 | . 20 4 58 2 32 9 44 5 10 16 . 16 6 22 24 8 19 7 Peak Tracking Total 12 | . 4 2 7 1 12 3 6 1 3 6 . 4 2 4 8 1 5 6 Tactical Retreats 30 | . 3 . 6 . 6 2 2 . 1 3 . . 3 1 . . 1 2 Traps | -11 -10 -10 -9 -9 -9 -8 -8 -7 -7 -7 -7 -6 -6 -6 -6 -6 -6 -5 ------- Run | Jun Mat Min Mat Min Exi Min Mat Fac Low Low Zio Pro Fac Ext Cet Arc Hub Fac Traps Triggered 10 | . 1 . 5 . . . 3 . . . . . . 1 . . . . Indirectly . | . . . . . . . . . . . . . . . . . . . Trap Hack Attempts . | . . . . . . . . . . . . . . . . . . . Triggered . | . . . . . . . . . . . . . . . . . . . Disarmed . | . . . . . . . . . . . . . . . . . . . Reprogrammed . | . . . . . . . . . . . . . . . . . . . Reused . | . . . . . . . . . . . . . . . . . . . Traps Extracted . | . . . . . . . . . . . . . . . . . . . Installed . | . . . . . . . . . . . . . . . . . . . Triggered 1 | . . . . . . . . . . . . 1 . . . . . . Exploded 3 | . . . . . 3 . . . . . . . . . . . . . Machines | -11 -10 -10 -9 -9 -9 -8 -8 -7 -7 -7 -7 -6 -6 -6 -6 -6 -6 -5 ---------- Run | Jun Mat Min Mat Min Exi Min Mat Fac Low Low Zio Pro Fac Ext Cet Arc Hub Fac Machines Disabled 41 | . 2 . 4 . 7 . 3 8 . 1 . . . 7 . . 1 8 Max in Single Turn 4 | . 1 . 1 . 2 . 1 3 . 1 . . . 2 . . 1 4 Energy Cycler 3 | . . . . . . . . . . . . . . 3 . . . . Machines Repaired 1 | . . . 1 . . . . . . . . . . . . . . . Machines Sabotaged . | . . . . . . . . . . . . . . . . . . . Overloaded Fab Kills . | . . . . . . . . . . . . . . . . . . . Hacking | -11 -10 -10 -9 -9 -9 -8 -8 -7 -7 -7 -7 -6 -6 -6 -6 -6 -6 -5 --------- Run | Jun Mat Min Mat Min Exi Min Mat Fac Low Low Zio Pro Fac Ext Cet Arc Hub Fac Machines Accessed 32 | . 4 1 13 . 1 1 4 2 . 1 . . . 2 1 1 . 1 Terminals 18 | . 3 . 9 . . 1 2 . . . . . . 2 1 . . . Fabricators . | . . . . . . . . . . . . . . . . . . . Repair Stations 3 | . . . 2 . . . 1 . . . . . . . . . . . Recycling Units 3 | . 1 . 1 . . . 1 . . . . . . . . . . . Scanalyzers 4 | . . . 1 . . . . 2 . . . . . . . . . 1 Garrison Access . | . . . . . . . . . . . . . . . . . . . Total Hacks 114 | . 9 1 55 . 1 4 22 7 . 1 . . . 8 1 2 . 3 Successful 70 | . 4 1 37 . 1 2 12 6 . 1 . . . 2 1 2 . 1 Failed 43 | . 5 . 17 . . 2 10 1 . . . . . 6 . . . 2 Catastrophic 4 | . 2 . 1 . . . . . . . . . . 1 . . . . Database Lockouts 1 | . . . 1 . . . . . . . . . . . . . . . Manual 47 | . 8 . 14 . 1 . 5 . . . . . . 6 . . 13 . Terminals 63 | . 8 . 37 . . 4 5 . . . . . . 8 1 . . . Fabricators . | . . . . . . . . . . . . . . . . . . . Repair Stations 24 | . . . 13 . . . 11 . . . . . . . . . . . Recycling Units 9 | . 1 . 2 . . . 6 . . . . . . . . . . . Scanalyzers 13 | . . . 3 . . . . 7 . . . . . . . . . 3 Garrison Access . | . . . . . . . . . . . . . . . . . . . Terminal Hacks 32 | . 2 1 17 . 1 2 3 . . 1 . . . 2 1 2 . . Record 3 | . . . . . . 1 . . . . . . . . . 2 . . Robot Analysis 6 | . 1 . 5 . . . . . . . . . . . . . . . Prototype ID Bank 7 | . . . 5 . . . 2 . . . . . . . . . . . Open Door 5 | . . 1 . . . . . . . 1 . . . 2 1 . . . Level Access Points 1 | . . . 1 . . . . . . . . . . . . . . . Emergency Access Points 4 | . 1 . 3 . . . . . . . . . . . . . . . Unreport Threat 1 | . . . 1 . . . . . . . . . . . . . . . Zone Layout 4 | . . . 2 . . 1 1 . . . . . . . . . . . EX-Prototype ID Bank 1 | . . . . . 1 . . . . . . . . . . . . . Fabricator Hacks . | . . . . . . . . . . . . . . . . . . . Repair Station Hacks 18 | . . . 11 . . . 7 . . . . . . . . . . . Scan Component 10 | . . . 6 . . . 4 . . . . . . . . . . . Repair 8 | . . . 5 . . . 3 . . . . . . . . . . . Recycling Unit Hacks 2 | . . . 1 . . . 1 . . . . . . . . . . . Report Inventory 2 | . . . 1 . . . 1 . . . . . . . . . . . Scanalyzer 9 | . . . 2 . . . . 6 . . . . . . . . . 1 Insert Component 5 | . . . 1 . . . . 3 . . . . . . . . . 1 Analyze 4 | . . . 1 . . . . 3 . . . . . . . . . . Garrison Access Hacks . | . . . . . . . . . . . . . . . . . . . Unauthorized Hacks 9 | . 2 . 6 . . . 1 . . . . . . . . . . . Terminals 6 | . 2 . 4 . . . . . . . . . . . . . . . Botnet 4 | . 2 . 2 . . . . . . . . . . . . . . . Detonate 1 | . . . 1 . . . . . . . . . . . . . . . Sabotage 1 | . . . 1 . . . . . . . . . . . . . . . Fabricators . | . . . . . . . . . . . . . . . . . . . Repair Stations . | . . . . . . . . . . . . . . . . . . . Recycling Units 2 | . . . 1 . . . 1 . . . . . . . . . . . Reject 1 | . . . 1 . . . . . . . . . . . . . . . Mask 1 | . . . . . . . 1 . . . . . . . . . . . Scanalyzers 1 | . . . 1 . . . . . . . . . . . . . . . Extract 1 | . . . 1 . . . . . . . . . . . . . . . Garrison Access . | . . . . . . . . . . . . . . . . . . . Data Cores Recovered 1 | . 1 . . . . . . . . . . . . . . . . . Used 1 | . 1 . . . . . . . . . . . . . . . . . Hacking Detections 27 | . 4 . 13 . . 1 4 2 . . . . . 1 1 . . 1 Full Trace Events 5 | . . . 2 . . 1 . 1 . . . . . 1 . . . . Feedback Events . | . . . . . . . . . . . . . . . . . . . Feedback Blocked . | . . . . . . . . . . . . . . . . . . . Robot Schematics Acquired . | . . . . . . . . . . . . . . . . . . . Robots Built . | . . . . . . . . . . . . . . . . . . . Authchips . | . . . . . . . . . . . . . . . . . . . Time . | . . . . . . . . . . . . . . . . . . . Total Robot Build Rating . | . . . . . . . . . . . . . . . . . . . Part Schematics Acquired 8 | . . . 6 . . . . 2 . . . . . . . . . . Parts Built . | . . . . . . . . . . . . . . . . . . . Authchips . | . . . . . . . . . . . . . . . . . . . Time . | . . . . . . . . . . . . . . . . . . . Total Part Build Rating . | . . . . . . . . . . . . . . . . . . . Parts Repaired 8 | . . . 5 . . . 3 . . . . . . . . . . . Time 352 | . . . 144 . . . 208 . . . . . . . . . . . Parts Recycled . | . . . . . . . . . . . . . . . . . . . Recycled Matter . | . . . . . . . . . . . . . . . . . . . Retrieved Matter . | . . . . . . . . . . . . . . . . . . . Retrieved Components . | . . . . . . . . . . . . . . . . . . . Parts Scanalyzed 4 | . . . 1 . . . . 2 . . . . . . . . . 1 Part Schematics Acquired 3 | . . . 1 . . . . 2 . . . . . . . . . . Parts Damaged . | . . . . . . . . . . . . . . . . . . . Bothacking | -11 -10 -10 -9 -9 -9 -8 -8 -7 -7 -7 -7 -6 -6 -6 -6 -6 -6 -5 ------------ Run | Jun Mat Min Mat Min Exi Min Mat Fac Low Low Zio Pro Fac Ext Cet Arc Hub Fac Used RIF Installer . | . . . . . . . . . . . . . . . . . . . Robots Hacked 5 | . . . . . 5 . . . . . . . . . . . . . Non-combat 3 | . . . . . 3 . . . . . . . . . . . . . Combat 2 | . . . . . 2 . . . . . . . . . . . . . Robot Hacks Applied 5 | . . . . . 5 . . . . . . . . . . . . . parse_system 5 | . . . . . 5 . . . . . . . . . . . . . Relay Couplers Released . | . . . . . . . . . . . . . . . . . . . Fabnet Peak Effective % . | . . . . . . . . . . . . . . . . . . . Robots Rewired 11 | . . . . . . . . . . . . . . 11 . . . . Allies Hacked . | . . . . . . . . . . . . . . . . . . . Hacks Repelled . | . . . . . . . . . . . . . . . . . . . Allies | -11 -10 -10 -9 -9 -9 -8 -8 -7 -7 -7 -7 -6 -6 -6 -6 -6 -6 -5 -------- Run | Jun Mat Min Mat Min Exi Min Mat Fac Low Low Zio Pro Fac Ext Cet Arc Hub Fac Total Allies 22 | . . . . . . . . . . . 4 . . 18 . . . . Largest Group 11 | . . . . . . . . . . . 4 4 1 11 11 . . . Highest-Rated Group 299 | . . . . . . . . . . . 158 158 39 299 299 . . . Highest-Rated Ally 41 | . . . . . . . . . . . 41 41 39 39 39 . . . Zionite Dispatches 1 | . . . . . . . . . . . . . . . . . 1 . Recon 1 | . . . . . . . . . . . . . . . . . 1 . Total Orders 3 | . . . . . . . . . . . . . . . 1 . 2 . ROAM 1 | . . . . . . . . . . . . . . . 1 . . . EXPLORE 2 | . . . . . . . . . . . . . . . . . 2 . Ally Attacks 133 | . . . . . 22 9 . . . . . 37 4 40 21 . . . Total Damage 4244 | . . . . . 1231 477 . . . . . 1136 92 994 314 . . . Kills 28 | . . . . . 1 3 . . . . . 13 3 7 1 . . . Allies Corrupted . | . . . . . . . . . . . . . . . . . . . Allies Melted . | . . . . . . . . . . . . . . . . . . . Turrets Deployed 3 | . . . . . 1 1 . . . . . . . 1 . . . . Intel | -11 -10 -10 -9 -9 -9 -8 -8 -7 -7 -7 -7 -6 -6 -6 -6 -6 -6 -5 ------- Run | Jun Mat Min Mat Min Exi Min Mat Fac Low Low Zio Pro Fac Ext Cet Arc Hub Fac Robot Analysis Total 6 | . 1 . 5 . . . . . . . . . . . . . . . Derelict Logs Recovered 8 | . . 1 . 1 . . . . 2 1 1 2 . . . . . . Drone Launches 3 | . . . . . . . . . . . . . . . . . 3 . Drone Recoveries 1 | . . . . . . . . . . . . . . . . . 1 . Zionite Intel Received 3 | . . . . . . . . . . . . . . 1 . . 2 . Main Access 1 | . . . . . . . . . . . . . . . . . 1 . Active Terminals 2 | . . . . . . . . . . . . . . 1 . . 1 . Exploration | -11 -10 -10 -9 -9 -9 -8 -8 -7 -7 -7 -7 -6 -6 -6 -6 -6 -6 -5 ------------- Run | Jun Mat Min Mat Min Exi Min Mat Fac Low Low Zio Pro Fac Ext Cet Arc Hub Fac Turns Passed 28797 | . 1122 841 3393 269 4338 2344 2577 971 2608 1179 1930 1685 304 2392 776 284 1437 347 Spaces Moved 9254 | 1 580 383 1132 72 1008 428 692 356 1086 480 835 708 85 791 163 50 220 184 Core . | . . . . . . . . . . . . . . . . . . . Treads 3853 | . 349 383 1132 72 1008 330 . . . . . . . . 140 50 220 169 Legs 144 | 1 143 . . . . . . . . . . . . . . . . . Wheels 5242 | . 88 . . . . 98 692 356 1086 480 835 708 85 791 23 . . . Hover . | . . . . . . . . . . . . . . . . . . . Flight 15 | . . . . . . . . . . . . . . . . . . 15 Fastest Speed 37 | 120 90 160 160 240 160 245 245 220 220 220 220 220 220 220 250 320 160 37 Average Speed 249 | 120 139 160 222 240 386 432 263 229 220 220 220 220 220 236 337 340 323 150 Slowest Speed 880 | 120 160 160 320 240 560 880 425 260 220 220 220 220 220 390 400 400 400 160 Overloaded Moves . | . . . . . . . . . . . . . . . . . . . Propulsion Burnouts . | . . . . . . . . . . . . . . . . . . . Robots Hopped . | . . . . . . . . . . . . . . . . . . . Cave-ins Triggered . | . . . . . . . . . . . . . . . . . . . Exploration Rate (%) 61 | 2 89 88 96 19 85 94 51 8 94 71 91 94 5 81 74 84 41 7 Regions Visited 18 Branch Regions 12 Pre-discovered Areas 2 | . . . . 1 . . . . 1 . . . . . . . . . Known Exits Taken 3 | . . . . . . 1 . . . . . 1 . . . . 1 . Unknown Exits Taken 15 | 1 1 1 1 1 1 . 1 1 1 1 1 . 1 1 1 1 . . Scrap Searched 31 | . . 1 . 2 . 1 . . 8 9 5 5 . . . . . . Spaces Dug 35 | . . . . . 5 . . 12 . 5 . . 5 2 . . 6 . Terrain Destroyed 279 | . 2 . 9 . 32 4 30 41 13 16 . 14 21 54 29 1 11 2 Melee . | . . . . . . . . . . . . . . . . . . . Projectile 161 | . . . 4 . . . 24 17 13 16 . 14 21 37 3 1 11 . AOE 118 | . 2 . 5 . 32 4 6 24 . . . . . 17 26 . . 2 Terrain Rammed . | . . . . . . . . . . . . . . . . . . . Walls Destroyed . | . . . . . . . . . . . . . . . . . . . Machines Disabled . | . . . . . . . . . . . . . . . . . . . Actions | -11 -10 -10 -9 -9 -9 -8 -8 -7 -7 -7 -7 -6 -6 -6 -6 -6 -6 -5 --------- Run | Jun Mat Min Mat Min Exi Min Mat Fac Low Low Zio Pro Fac Ext Cet Arc Hub Fac Total 13723 | . 799 593 1752 161 1349 854 1354 476 1251 553 929 809 161 1147 320 123 860 232 Wait 2856 | . 146 172 360 82 91 400 508 73 84 29 55 57 31 96 73 42 550 7 Move 9237 | . 579 382 1131 71 1007 427 691 355 1085 479 834 707 84 790 162 49 220 184 Hop . | . . . . . . . . . . . . . . . . . . . Pick Up 254 | . 11 12 49 1 70 2 24 9 11 6 11 6 2 20 7 3 8 2 Fast Attach 85 | . . . 9 . 6 4 11 3 9 . 3 5 1 16 7 1 4 6 Attach 85 | . 2 . 10 . 12 1 13 3 7 1 4 . 4 11 8 3 4 2 Detach 20 | . . . 3 . 3 1 2 . . . . . 1 4 3 . 1 2 Swap 80 | . 5 5 11 2 14 . 4 . 2 2 9 . . 11 5 2 7 1 Drop 269 | . 8 11 42 1 62 6 28 9 19 2 13 12 1 25 13 . 10 7 Fire 740 | . 48 11 137 4 79 . 73 24 34 34 . 22 37 104 34 23 56 20 Melee 13 | . . . . . 5 . . . . . . . . . 8 . . . Ram 1 | . . . . . . . . . . . . . . . . . . 1 Kick . | . . . . . . . . . . . . . . . . . . . Crush 13 | . . . . . . 13 . . . . . . . . . . . . Escape Stasis . | . . . . . . . . . . . . . . . . . . . Rewire 70 | . . . . . . . . . . . . . . 70 . . . . Trap . | . . . . . . . . . . . . . . . . . . . Miscellaneous . | . . . . . . . . . . . . . . . . . . . Route ------- -11/Junkyard -10/Materials (discovered 4 exits: *Mat x3 / *Min) -10/Mines (discovered 2 exits: *Mat x2) -9/Materials (discovered 7 exits: *Mat x3 / [*Min x2] / [*Sto x2]) -9/Mines (discovered 2 exits: *Mat / *Exi) -9/Exiles -8/Mines (discovered 2 exits: *Mat x2) -8/Materials -7/Factory -7/Lower Caves -7/Lower Caves (discovered 2 exits: *Fac / [*Zio]) -7/Zion -6/Proximity Caves -6/Factory (discovered 3 exits: Fac / Low / *Ext) -6/Extension (discovered 3 exits: *Fac x2 / *Cet) -6/Cetus -6/Archives (discovered 2 exits: *Hub x2) -6/Hub_04(d) (discovered 4 exits: *Fac x4) -5/Factory History --------- Turn | Location | Event 1 | -11/Junkyard | Discovered new exit (range 0) 1 | -11/Junkyard | Entered Materials 305 | -10/Materials | Build established: Mutant 336 | -10/Materials | Discovered new exit (range 5) 514 | -10/Materials | Discovered new exit (range 9) 740 | -10/Materials | Discovered new exit (range 5) 1101 | -10/Materials | Discovered new exit (range 14) 1123 | -10/Materials | Entered Mines 1153 | -10/Mines | Received a Rocket Launcher from a helpful Derelict 1467 | -10/Mines | Discovered new exit (range 6) 1500 | -10/Mines | Learned location of 1 exit from Materials 1502 | -10/Mines | Met a Derelict who couldn't figure out how to use a Trap Extractor 1870 | -10/Mines | Discovered new exit (range 5) 1964 | -10/Mines | Entered Materials 1964 | -9/Materials | Evolved 2 slots: Utility x2 1965 | -9/Materials | Identified exit to Materials 2334 | -9/Materials | Discovered exit to Materials (range 16) 2497 | -9/Materials | Discovered new exit (range 12) 2635 | -9/Materials | Lost 3 parts (1p1n1w) 2731 | -9/Materials | Discovered new exit (range 16) 2748 | -9/Materials | Discovered new exit (range 16) 2937 | -9/Materials | Discovered new exit (range 5) 3028 | -9/Materials | Central database locked down 3408 | -9/Materials | Repaired Imp. Light Armor Plating 3437 | -9/Materials | Repaired Lgt. Armor Plating 3470 | -9/Materials | Repaired Imp. Treads 3523 | -9/Materials | Repaired Imp. Treads 3719 | -9/Materials | Build established: Hacker-Mutant 3870 | -9/Materials | Repaired Hvy. Assault Rifle 4144 | -9/Materials | Discovered exit to Materials (range 10) 4976 | -9/Materials | Build established: Mutant 5357 | -9/Materials | Entered Mines 5358 | -9/Mines | Assembled infested the area 5358 | -9/Mines | Learned location of Storage (-9) 5363 | -9/Mines | Assisted by a Guerilla fighting off Assembled 5495 | -9/Mines | Learned Materials garrison access intel 5531 | -9/Mines | Discovered exit to Materials (range 13) 5617 | -9/Mines | Deemed a non-threat by the Exiles lab entrance 5617 | -9/Mines | Discovered new exit (range 5) 5626 | -9/Mines | Entered Exiles 5690 | -9/Exiles | Met 8R-AWN 5728 | -9/Exiles | Met EX-HEX 6011 | -9/Exiles | Met EX-DEC 6415 | -9/Exiles | Build established: Hauler-Mutant 6469 | -9/Exiles | Met EX-BIN 6538 | -9/Exiles | Aligned with FarCom system 6543 | -9/Exiles | Given EX-Vault access code 6662 | -9/Exiles | Opened EX-Vault 6700 | -9/Exiles | Found 0b10 Alert Chip 6716 | -9/Exiles | Found AWS/Autocannon 6721 | -9/Exiles | Found Deploy-a-Sentry 6727 | -9/Exiles | Found Deploy-a-Sentry 6733 | -9/Exiles | Found Deploy-a-Sentry 6830 | -9/Exiles | Warned to stay clear of 0b10 Research branches 7917 | -9/Exiles | DAS Turret deployed 8003 | -9/Exiles | Attacked by the Exiles 8105 | -9/Exiles | Core integrity fell below 50% 8139 | -9/Exiles | Destroyed 8R-AWN 8171 | -9/Exiles | Build established: Mutant 8743 | -9/Exiles | Build established: Hauler-Mutant 9095 | -9/Exiles | Destroyed EX-DEC 9146 | -9/Exiles | Found Deploy-a-Sentry 9157 | -9/Exiles | Found Prototype Energy Gun 9235 | -9/Exiles | Destroyed EX-BIN 9265 | -9/Exiles | Found System Purifier 9310 | -9/Exiles | Destroyed EX-HEX 9419 | -9/Exiles | Identified AWS/EX-DEC 9909 | -9/Exiles | Discovered new exit (range 14) 9964 | -9/Exiles | Stole three prototypes: 0b10 Alert Chip, AWS/Autocannon, Deploy-a-Sentry 9964 | -9/Exiles | Entered Mines 10245 | -8/Mines | DAS Turret deployed 11395 | -8/Mines | Discovered exit to Materials (range 10) 12085 | -8/Mines | Discovered exit to Materials (range 5) 12308 | -8/Mines | Entered Materials 12308 | -8/Materials | Evolved 2 slots: Utility x2 12309 | -8/Materials | Loaded intel: 1 garrison access location 13198 | -8/Materials | Garrison activated, responded to threat 13517 | -8/Materials | Repaired Hvy. Armor Plating 13590 | -8/Materials | Repaired Hvy. Deuterium Engine 13694 | -8/Materials | Repaired Broken Cold Fusion Reactor 14702 | -8/Materials | Discovered new exit (range 3) 14885 | -8/Materials | Entered Factory 14885 | -7/Factory | Evolved 2 slots: Utility x2 15400 | -7/Factory | Discovered new exit (range 8) 15856 | -7/Factory | Entered Lower Caves 15981 | -7/Lower Caves | Encountered a Warlord checkpoint 16334 | -7/Lower Caves | Learned Factory emergency access door positions 16536 | -7/Lower Caves | Spotted B-75 Beast 16807 | -7/Lower Caves | Destroyed B-75 Beast 17145 | -7/Lower Caves | Ambushed by wild Derelicts 17361 | -7/Lower Caves | Attracted the attention of an 0b10 checkpoint 17658 | -7/Lower Caves | Discovered new exit (range 6) 18464 | -7/Lower Caves | Entered another Lower Caves area 18764 | -7/Lower Caves | Discovered new exit (range 9) 19515 | -7/Lower Caves | Spotted CF-N2Q(f) 19516 | -7/Lower Caves | Encountered a Master Thief 19516 | -7/Lower Caves | 0b10 Alert Chip stolen by Master Thief 19516 | -7/Lower Caves | Spotted C5-00Q(f) 19517 | -7/Lower Caves | Encountered a Master Thief 19517 | -7/Lower Caves | Spotted DT-QKT(f) 19517 | -7/Lower Caves | Deploy-a-Sentry stolen by Master Thief 19518 | -7/Lower Caves | Encountered a Master Thief 19518 | -7/Lower Caves | Deploy-a-Sentry stolen by Master Thief 19519 | -7/Lower Caves | Destroyed C5-00Q(f) 19603 | -7/Lower Caves | Discovered new exit (range 10) 19627 | -7/Lower Caves | Learned 8 Factory zone layouts 19643 | -7/Lower Caves | Entered Zion 19781 | -7/Zion | Discovered new exit (range 13) 19867 | -7/Zion | Given the Hacking Drone Bay 19868 | -7/Zion | Found Prototype Device 20137 | -7/Zion | Identified Hacking Drone Bay 20313 | -7/Zion | Imprinted 20315 | -7/Zion | Declared Zion's savior 20915 | -7/Zion | Found GAL Module 21086 | -7/Zion | Visited the Megawrench Repair Shop 21090 | -7/Zion | Megawrench repaired 9 parts 21573 | -7/Zion | Entered Proximity Caves 21573 | -6/Proximity Caves | Accompanied by 4 allies 21771 | -6/Proximity Caves | Attracted the attention of an 0b10 checkpoint 21959 | -6/Proximity Caves | Spotted B-75 Beast 21979 | -6/Proximity Caves | Destroyed B-75 Beast 22366 | -6/Proximity Caves | Received a Behemoth hack from an annoying Tinkerer 22880 | -6/Proximity Caves | Learned Factory trap positions 22902 | -6/Proximity Caves | Identified exit to Factory 23258 | -6/Proximity Caves | Entered Factory 23258 | -6/Factory | Accompanied by 1 ally 23258 | -6/Factory | Evolved 2 slots: Utility x2 23259 | -6/Factory | Identified exit to Lower Caves 23259 | -6/Factory | Identified exit to Factory 23260 | -6/Factory | Loaded intel: 120 trap records 23555 | -6/Factory | Discovered new exit (range 5) 23562 | -6/Factory | Entered Extension 23567 | -6/Extension | Disrupted transfer network 23664 | -6/Extension | Rescued a captive Derelict 23664 | -6/Extension | Rescued a captive Derelict 23699 | -6/Extension | Rescued a captive Derelict 23700 | -6/Extension | Rescued a captive Derelict 23730 | -6/Extension | Energy Cycler disabled 23731 | -6/Extension | Rescued a captive Derelict 23732 | -6/Extension | Rescued a captive Derelict 23732 | -6/Extension | Rescued a captive Derelict 23733 | -6/Extension | Rescued a captive Derelict 23736 | -6/Extension | Rescued a captive Derelict 23738 | -6/Extension | Rescued a captive Derelict 23859 | -6/Extension | Retrieved Zion intel report: Active Terminals 24087 | -6/Extension | Spotted B-75 Beast 24439 | -6/Extension | Destroyed B-75 Beast 24465 | -6/Extension | Discovered exit to Factory (range 20) 24465 | -6/Extension | Spotted B-75 Beast 24940 | -6/Extension | DAS Turret deployed 24941 | -6/Extension | Allies destroyed B-75 Beast 24948 | -6/Extension | Lost 6 parts (1n3u2w) 25087 | -6/Extension | Terminal network hard line cut 25201 | -6/Extension | Extracted ID and sensor layout for unrecognized location from A7's data core 25318 | -6/Extension | Build established: Scavenger-Mutant 25924 | -6/Extension | Discovered exit to Factory (range 10) 25926 | -6/Extension | Discovered new exit (range 6) 25954 | -6/Extension | Entered Cetus 25954 | -6/Cetus | Accompanied by 11 allies 25972 | -6/Cetus | Spotted Cetus Guard 25972 | -6/Cetus | Spotted Cetus Guard 25975 | -6/Cetus | Spotted Cetus Guard 25975 | -6/Cetus | Spotted Cetus Guard 25976 | -6/Cetus | Allies destroyed Cetus Guard 25988 | -6/Cetus | Destroyed Cetus Guard 25996 | -6/Cetus | Destroyed Cetus Guard 26660 | -6/Cetus | Discovered new exit (range 21) 26730 | -6/Cetus | Entered Archives 26912 | -6/Archives | Discovered new exit (range 22) 26920 | -6/Archives | Lost 3 parts (1p2u) 26929 | -6/Archives | Discovered new exit (range 22) 26948 | -6/Archives | Unable to access archive contents 27014 | -6/Archives | Entered Hub_04(d) 27060 | -6/Hub_04(d) | Zion Recon squad teleported in 27498 | -6/Hub_04(d) | Retrieved Zion intel report: Main Access 27584 | -6/Hub_04(d) | Retrieved Zion intel report: Active Terminals 28449 | -6/Hub_04(d) | Core integrity fell below 50% 28451 | -6/Hub_04(d) | Entered Factory 28451 | -5/Factory | Evolved 2 slots: Propulsion x2 28464 | -5/Factory | Lost 21 parts (1p1n13u5w) 28798 | -5/Factory | Self-destructed Last Messages --------------- 28761_ R-10 Processor collects Imp. Medium Armor Plating. 28763_ Fabricator disabled. 28763_ U-05 Engineer lays Concrete. 28763_ K-01 Serf collects debris. 28763_ Energy Filter destroyed. 28764_ K-01 Serf collects debris. 28764_ R-10 Processor collects Broken System Purifier. 28765_ Acquired Corrupted Nuclear Pulse Array. 28766_ K-01 Serf collects debris. 28766_ U-05 Engineer lays Concrete. 28767_ K-01 Serf collects debris. 28768_ U-05 Engineer lays Concrete. 28768_ R-10 Processor collects Corrupted Centrium Heavy Treads. 28771_ ALERT: Construction progress impeded, dispatching reinforcements to local area. 28776_ S-27 Virus destroyed. 28789_ P-70 Sage resets P-70 Sage, system corruption cleaned. 28794_ Slammed into P-70 Sage. 28795_ Imp. Cooling System destroyed. 28797_ Hvy. Deuterium Engine destroyed. Map ----- +----------------------------------------------------+ | ?????????????????????????????????????????????????? | | ?????????????????????????????????????????????????? | | ?????????????????????????????????????????????????? | | ?????????????????????????????????????????????????? | | ?????????????????????????????????????????????????? | | ?????????????????????????????????????????????????? | | ?????????????????????????????????????????????????? | | ?????????????????????????????????????????????????? | | ?????????????????????????????????????????????????? | | ????????????????? ?????????????????????????????? | | ????????????????? ?????????????????????????????? | | ????????????????? ?????????????????????????????? | | ?????????????? ?? ?????????????????????????????? | | ????????????? ?? #????????????????????????????? | | ????????????? ?? #???????????????????????????"S | | ?????? ???"" ?"" #????????????????????????#?"" | | ??????? """ ?"" ###########??????????????# | | ???????# """ """ # #??????????????# | | ???????# # | """"#??????????????# | | ???????# """ """ # """"#??????????????# | | ???????# """ """ # """"#??????????????# " | | ???????# """ """ # """"#??????????????# " | | ???????# # """"#??????????????? " | | ?? ???# #! """"#????????????????? " | | ? """??# # % #??????????????????? | | ""F"?# #####@#############+########## | | "" # p p % | | [ | | %" | | ??""" H | | # /// | | ???????# // ###########+########## | | ???????# // #????# #??# | | ???????# * #????# #??# | | ???????# = " ###### " " " " " #??# | | ???????# """" + " " " " " #??# | | ???????# ###### " " " " " #??# | | ???????# #????# " " " " " !#??# | | ???????# ############+###????# " " " " " #### | | ???????# ????????????????????# " " " " " # | | ???????# ?????????????????????# " " " " " # | | ???????# ?????????????????????# " " " " " # | | ???????# ??????????????????????# " " " " " # | | ???????# ??????????????????????# # | | ???????# ???????????????????????############## | | ???????# ????????????????????????????????????# | | ???????# ?????????????????????????????????????# | | ???????/ ?????????????????????????????????????# | | ?????? #??????????????????????????????????????# | | ??????????????????????????????????????????????# | +----------------------------------------------------+ Best States ------------- Heat Dissipation 113 Energy Generation 20 Energy Capacity 1010 Matter Stores 300 Matter Capacity 300 Sight Range 22 Robot Scan Range 15 Terrain Scan Range 16 Terrain Scan Density 10 Jamming Range 16 Power Amplification 20 Armor Coverage 1650 Resistance: KI 20 Resistance: TH 20 Utility Shielding 66 Weapon Shielding 66 Weapon Cycling 15 Evasion (%) 62 Targeting Accuracy 16 Launcher Accuracy 40 Target Analysis 5 Core Analysis 6 Armor Integrity Analysis 40 Recoil Reduction 4 Energy Filtering 30 Offensive Hacking 20 Defensive Hacking 14 Item Schematics ----------------- Adv. Targeting Computer | -9/Materials | Scanalyzed Hvy. Hammer | -9/Materials | Extracted Imp. Ion Engine | -9/Materials | Extracted Sml. Storage Unit | -9/Materials | Extracted Terrain Scanner | -9/Materials | Extracted Sml. Laser | -9/Materials | Extracted Hvy. Armor Plating | -7/Factory | Scanalyzed Med. Treads | -7/Factory | Scanalyzed Robot Schematics ------------------ None Fabricated ------------ Nothing Alien Tech Used ----------------- None Achievements -------------- None Challenges ------------ None Game ------ Seed XenonSurveybotShield Manual? 0 Play Time 02:36:53 Cumulative 488.5 hours Start 2023.03.17 @ 01:18:54 End 2023.03.17 @ 04:08:14 Sessions 1 Manual Loads 0 Difficulty Rogue Special Mode None Game No. 525 Rogue 525 Adventurer 0 Explorer 0 Win Type - Total 1 Types 1/0/0/0/0/0/0/0/0 Lore% 61 Gallery% 82 Achievement% 65 Wizard Run 0 Options --------- ASCII 0 Keyboard 0 Movement Mouse Keybinds 0 Fullscreen 2 Font 24/Smallcaps Map View 76x50 Tactical HUD 1 Map Filters NONE Filters NONE Steam 1 RUN: 708a658e-4aa8-49cc-948b-3cbda8d922db